[Event "European Online Club-ch-B 2021"]
[Site "Online"]
[Date "2021.03.27"]
[Round "5.1"]
[White "Edouard, Romain"]
[Black "Chlpik, Martin"]
[Result "1-0"]
[ECO "A67"]
[WhiteElo "2614"]
[BlackElo "2199"]
[Annotator "ChessBase"]
[PlyCount "65"]
[EventDate "2021.03.27"]
[EventType "team-tourn"]
[EventCountry "NET"]
[SourceTitle "playchess.com"]
[Source "ChessBase"]
[SourceQuality "1"]
[TimeControl "900+5"]

1. d4 {[%emt 0:00:00]} Nf6 {[%emt 0:00:05]} 2. c4 {[%emt 0:00:03]} c5 {[%emt 0:00:02]} 3. d5 {[%emt 0:00:06]} e6 {[%emt 0:00:02]} 4. Nc3 {[%emt 0:00:02]} exd5 {[%emt 0:00:02]} 5. cxd5 {[%emt 0:00:00]} d6 {[%emt 0:00:01]} 6. e4 {[%emt 0:00:01]} g6 {[%emt 0:00:02]} 7. f4 {[%emt 0:00:01]} Bg7 {[%emt 0:00:08]} 8. Bb5+ {[%emt 0:00:02]} Nfd7 {[%emt 0:00:02]} 9. Nf3 {[%emt 0:00:03]} a6 {[%emt 0:00:04]} 10. Bd3 {[%emt 0:00:02]} b5 {[%emt 0:00:05]} 11. O-O {[%emt 0:00:01]} O-O {[%emt 0:00:09]} 12. a3 {[%emt 0:00:03]} Re8 {[%emt 0:00:28]} 13. Kh1 {[%emt 0:00:05]} Nf6 {[%emt 0:01:29]} 14. f5 {[%emt 0:00:39]} Nbd7 {[%emt 0:03:06]} 15. Bg5 {[%emt 0:00:13]} Qb6 {[%emt 0:00:44]} 16. Qe1 {[%emt 0:00:12]} b4 {[%emt 0:01:38]} 17. axb4 {[%emt 0:00:10]} cxb4 {[%emt 0:00:02]} 18. Na4 {[%emt 0:00:02]} Qc7 {[%emt 0:00:03]} 19. Qh4 {[%emt 0:00:32]} a5 {[%emt 0:00:38]} 20. Rac1 {[%emt 0:00:37]} Qb8 {[%emt 0:00:36]} 21. Nd4 {[%emt 0:00:07]} Ba6 {[%emt 0:00:15]} 22. Nc6 {[%emt 0:00:11]} Qb7 {[%emt 0:00:09]} 23. Bxa6 {[%emt 0:00:03]} Qxa6 {[%emt 0:00:12]} 24. fxg6 {[%emt 0:00:00]} Rxe4 {[%emt 0:01:57]} 25. gxf7+ {[%emt 0:00:17]} Kh8 {[%emt 0:00:02]} 26. Qg3 {[%emt 0:00:35]} Qb5 {[%emt 0:01:32]} 27. Bxf6 {[%emt 0:00:28]} Nxf6 {[%emt 0:00:05]} 28. Qxd6 {[%emt 0:00:05]} Qxa4 {[%emt 0:03:07]} 29. Rxf6 {[%emt 0:00:32]} Bf8 {[%emt 0:00:01]} 30. Qg3 {[%emt 0:00:20]} Bg7 {[%emt 0:00:03]} 31. Re6 {[%emt 0:00:06]} Rxe6 {[%emt 0:00:30]} 32. dxe6 {[%emt 0:00:00]} Bf6 {[%emt 0:00:14]} 33. Nb8 {[%emt 0:00:11]} 1-0

[Event "European Online Club-ch-B 2021"]
[Site "Online"]
[Date "2021.03.27"]
[Round "5.2"]
[White "Solcan, Martin"]
[Black "Fontaine, Robert"]
[Result "0-1"]
[ECO "A07"]
[WhiteElo "2076"]
[BlackElo "2550"]
[Annotator "ChessBase"]
[PlyCount "242"]
[EventDate "2021.03.27"]
[EventType "team-tourn"]
[EventCountry "NET"]
[SourceTitle "playchess.com"]
[Source "ChessBase"]
[SourceQuality "1"]
[TimeControl "900+5"]

1. g3 {[%emt 0:00:00]} d5 {[%emt 0:00:03]} 2. Bg2 {[%emt 0:00:02]} c6 {[%emt 0:00:01]} 3. d3 {[%emt 0:00:05]} Nf6 {[%emt 0:00:02]} 4. Nf3 {[%emt 0:00:02]} Bg4 {[%emt 0:00:02]} 5. O-O {[%emt 0:00:02]} Nbd7 {[%emt 0:00:03]} 6. c4 {[%emt 0:00:02]} e6 {[%emt 0:00:01]} 7. a3 {[%emt 0:00:06]} Bd6 {[%emt 0:00:10]} 8. Nbd2 {[%emt 0:00:09]} O-O {[%emt 0:00:04]} 9. b4 {[%emt 0:00:08]} a5 {[%emt 0:00:03]} 10. Rb1 {[%emt 0:00:24]} axb4 {[%emt 0:00:02]} 11. axb4 {[%emt 0:00:01]} Qe7 {[%emt 0:00:06]} 12. Qb3 {[%emt 0:00:27]} e5 {[%emt 0:00:06]} 13. h3 {[%emt 0:02:26]} Be6 {[%emt 0:00:34]} 14. Ng5 {[%emt 0:00:20]} b5 {[%emt 0:01:02]} 15. Nxe6 {[%emt 0:00:48]} fxe6 {[%emt 0:00:05]} 16. Nf3 {[%emt 0:00:39]} Rfb8 {[%emt 0:00:37]} 17. c5 {[%emt 0:00:34]} Bc7 {[%emt 0:00:03]} 18. Bb2 {[%emt 0:00:05]} Qe8 {[%emt 0:01:30]} 19. Ra1 {[%emt 0:00:33]} Rxa1 {[%emt 0:00:04]} 20. Rxa1 {[%emt 0:00:03]} Ra8 {[%emt 0:00:01]} 21. Rxa8 {[%emt 0:00:25]} Qxa8 {[%emt 0:00:02]} 22. Qa3 {[%emt 0:00:01]} Qxa3 {[%emt 0:00:41]} 23. Bxa3 {[%emt 0:00:03]} Kf7 {[%emt 0:00:01]} 24. Nd2 {[%emt 0:00:49]} Ke7 {[%emt 0:00:25]} 25. e4 {[%emt 0:00:09]} Nb8 {[%emt 0:00:12]} 26. Kf1 {[%emt 0:00:35]} Na6 {[%emt 0:00:03]} 27. Ke2 {[%emt 0:00:11]} g5 {[%emt 0:00:12]} 28. Nb3 {[%emt 0:00:29]} Kd7 {[%emt 0:00:07]} 29. Kd2 {[%emt 0:00:24]} Ke7 {[%emt 0:00:07]} 30. Ke2 {[%emt 0:00:01]} Nd7 {[%emt 0:00:02]} 31. Kd2 {[%emt 0:00:18]} Kf6 {[%emt 0:00:02]} 32. Ke2 {[%emt 0:00:08]} Bd8 {[%emt 0:00:02]} 33. Kd2 {[%emt 0:00:06]} Nf8 {[%emt 0:00:03]} 34. Ke2 {[%emt 0:00:03]} Ng6 {[%emt 0:00:06]} 35. Kd2 {[%emt 0:00:17]} h5 {[%emt 0:00:06]} 36. Ke2 {[%emt 0:00:08]} Ke7 {[%emt 0:00:19]} 37. Kd2 {[%emt 0:00:04]} Kd7 {[%emt 0:00:01]} 38. Ke2 {[%emt 0:00:01]} Be7 {[%emt 0:00:12]} 39. Kd2 {[%emt 0:00:07]} Kc7 {[%emt 0:00:23]} 40. Ke2 {[%emt 0:00:02]} Nf8 {[%emt 0:00:03]} 41. Kd2 {[%emt 0:00:02]} h4 {[%emt 0:00:05]} 42. Ke2 {[%emt 0:00:06]} Nd7 {[%emt 0:00:02]} 43. Bf3 {[%emt 0:00:27]} Nf6 {[%emt 0:00:16]} 44. Kd2 {[%emt 0:00:23]} Kd7 {[%emt 0:00:12]} 45. Ke2 {[%emt 0:00:08]} Nc7 {[%emt 0:00:08]} 46. Bb2 {[%emt 0:00:13]} Na6 {[%emt 0:00:02]} 47. Ba3 {[%emt 0:00:03]} Bd8 {[%emt 0:00:25]} 48. Kd2 {[%emt 0:00:05]} Bc7 {[%emt 0:00:02]} 49. Ke2 {[%emt 0:00:07]} Bb8 {[%emt 0:00:02]} 50. Kd2 {[%emt 0:00:05]} Nc7 {[%emt 0:00:08]} 51. Bb2 {[%emt 0:00:13]} Nce8 {[%emt 0:00:05]} 52. Ke2 {[%emt 0:00:10]} Ng7 {[%emt 0:00:03]} 53. Bc1 {[%emt 0:00:14]} Nh7 {[%emt 0:00:04]} 54. Kd2 {[%emt 0:00:27]} Bc7 {[%emt 0:00:06]} 55. Ke2 {[%emt 0:00:02]} Bd8 {[%emt 0:00:02]} 56. Kd1 {[%emt 0:00:14]} Bf6 {[%emt 0:00:30]} 57. Ke2 {[%emt 0:00:09]} Ne8 {[%emt 0:00:22]} 58. Kd1 {[%emt 0:00:05]} Nc7 {[%emt 0:00:07]} 59. Ke2 {[%emt 0:00:04]} Na6 {[%emt 0:00:04]} 60. Ba3 {[%emt 0:00:01]} Bg7 {[%emt 0:00:09]} 61. Kd2 {[%emt 0:00:12]} Nf6 {[%emt 0:00:08]} 62. Ke2 {[%emt 0:00:04]} Bh6 {[%emt 0:00:02]} 63. Kd1 {[%emt 0:00:06]} g4 {[%emt 0:00:46]} 64. hxg4 {[%emt 0:00:13]} h3 {[%emt 0:01:24]} 65. Ke2 {[%emt 0:00:08]} h2 {[%emt 0:00:11]} 66. Nd2 {[%emt 0:01:54]} Nxg4 {[%emt 0:00:30]} 67. Nb3 {[%emt 0:00:47]} Bg5 {[%emt 0:00:28]} 68. Bh1 {[%emt 0:01:37]} Nc7 {[%emt 0:00:16]} 69. Bb2 {[%emt 0:00:09]} Na6 {[%emt 0:01:12]} 70. Ba3 {[%emt 0:00:04]} Kc7 {[%emt 0:00:10]} 71. Bf3 {[%emt 0:00:09]} Nb8 {[%emt 0:00:07]} 72. Bb2 {[%emt 0:00:07]} Nd7 {[%emt 0:00:01]} 73. Bc1 {[%emt 0:00:19]} Bxc1 {[%emt 0:00:07]} 74. Nxc1 {[%emt 0:00:01]} Nb8 {[%emt 0:00:01]} 75. Bg2 {[%emt 0:00:04]} Na6 {[%emt 0:00:03]} 76. Na2 {[%emt 0:00:01]} Kd7 {[%emt 0:00:06]} 77. f3 {[%emt 0:00:09]} Nf6 {[%emt 0:00:03]} 78. Kf2 {[%emt 0:00:09]} Nh5 {[%emt 0:00:05]} 79. Bh1 {[%emt 0:00:06]} Ke7 {[%emt 0:00:10]} 80. Kg2 {[%emt 0:00:02]} Kf6 {[%emt 0:00:01]} 81. Kxh2 {[%emt 0:00:01]} Kg5 {[%emt 0:00:01]} 82. Kg2 {[%emt 0:00:20]} Nf6 {[%emt 0:00:06]} 83. Kf2 {[%emt 0:00:03]} Nc7 {[%emt 0:00:21]} 84. Bg2 {[%emt 0:00:08]} Nd7 {[%emt 0:00:07]} 85. Bh3 {[%emt 0:00:05]} Nf8 {[%emt 0:00:02]} 86. Nc3 {[%emt 0:00:08]} d4 {[%emt 0:00:06]} 87. Na2 {[%emt 0:00:03]} Ng6 {[%emt 0:00:08]} 88. Nc1 {[%emt 0:00:05]} Kf6 {[%emt 0:00:04]} 89. Na2 {[%emt 0:00:04]} Kg5 {[%emt 0:00:19]} 90. Nc1 {[%emt 0:00:05]} Nh8 {[%emt 0:00:01]} 91. Na2 {[%emt 0:00:11]} Nf7 {[%emt 0:00:04]} 92. Nc1 {[%emt 0:00:02]} Nd8 {[%emt 0:00:07]} 93. Na2 {[%emt 0:00:03]} Na6 {[%emt 0:00:03]} 94. Bg4 {[%emt 0:00:03]} Kf6 {[%emt 0:00:08]} 95. f4 {[%emt 0:00:06]} Nb7 {[%emt 0:00:09]} 96. Bh5 {[%emt 0:00:07]} Nd8 {[%emt 0:00:07]} 97. Be8 {[%emt 0:00:06]} Nc7 {[%emt 0:00:07]} 98. Bh5 {[%emt 0:00:03]} exf4 {[%emt 0:00:02]} 99. gxf4 {[%emt 0:00:01]} e5 {[%emt 0:00:00]} 100. Kf3 {[%emt 0:00:20]} Nde6 {[%emt 0:00:04]} 101. f5 {[%emt 0:00:10]} Nf4 {[%emt 0:00:04]} 102. Bg4 {[%emt 0:00:11]} Nxd3 {[%emt 0:00:02]} 103. Ke2 {[%emt 0:00:02]} Nf4+ {[%emt 0:00:03]} 104. Kf3 {[%emt 0:00:02]} Na6 {[%emt 0:00:01]} 105. Kg3 {[%emt 0:00:04]} Nd3 {[%emt 0:00:06]} 106. Bh5 {[%emt 0:00:05]} Naxb4 {[%emt 0:00:07]} 107. Nxb4 {[%emt 0:00:05]} Nxb4 {[%emt 0:00:01]} 108. Be8 {[%emt 0:00:02]} Ke7 {[%emt 0:00:02]} 109. Bh5 {[%emt 0:00:06]} Nd3 {[%emt 0:00:02]} 110. Kf3 {[%emt 0:00:11]} Nxc5 {[%emt 0:00:06]} 111. Bg6 {[%emt 0:00:04]} Nd3 {[%emt 0:00:05]} 112. Bh7 {[%emt 0:00:06]} c5 {[%emt 0:00:03]} 113. Ke2 {[%emt 0:00:02]} Nf4+ {[%emt 0:00:02]} 114. Kd2 {[%emt 0:00:02]} Kf8 {[%emt 0:00:09]} 115. f6 {[%emt 0:00:10]} Kf7 {[%emt 0:00:04]} 116. Bf5 {[%emt 0:00:03]} c4 {[%emt 0:00:13]} 117. Bd7 {[%emt 0:00:07]} c3+ {[%emt 0:00:03]} 118. Kc2 {[%emt 0:00:02]} b4 {[%emt 0:00:02]} 119. Bb5 {[%emt 0:00:09]} d3+ {[%emt 0:00:07]} 120. Kb3 {[%emt 0:00:05]} Kxf6 {[%emt 0:00:05]} 121. Kxb4 {[%emt 0:00:02]} c2 {[%emt 0:00:03]} 0-1

[Event "European Online Club-ch-B 2021"]
[Site "Online"]
[Date "2021.03.27"]
[Round "5.3"]
[White "Sokolov, Andrei"]
[Black "Lecky, Juraj"]
[Result "1-0"]
[ECO "B85"]
[WhiteElo "2516"]
[BlackElo "2070"]
[Annotator "ChessBase"]
[PlyCount "93"]
[EventDate "2021.03.27"]
[EventType "team-tourn"]
[EventCountry "NET"]
[SourceTitle "playchess.com"]
[Source "ChessBase"]
[SourceQuality "1"]
[TimeControl "900+5"]

1. e4 {[%emt 0:00:24]} c5 {[%emt 0:00:04]} 2. Nf3 {[%emt 0:00:04]} d6 {[%emt 0:00:01]} 3. d4 {[%emt 0:00:04]} cxd4 {[%emt 0:00:00]} 4. Nxd4 {[%emt 0:00:04]} Nf6 {[%emt 0:00:02]} 5. Nc3 {[%emt 0:00:02]} a6 {[%emt 0:00:01]} 6. Be2 {[%emt 0:00:37]} e6 {[%emt 0:00:05]} 7. a4 {[%emt 0:00:39]} Be7 {[%emt 0:00:06]} 8. f4 {[%emt 0:00:17]} Nc6 {[%emt 0:00:18]} 9. Be3 {[%emt 0:00:04]} O-O {[%emt 0:00:10]} 10. O-O {[%emt 0:00:10]} Qc7 {[%emt 0:00:21]} 11. Kh1 {[%emt 0:00:06]} Re8 {[%emt 0:00:09]} 12. Bf3 {[%emt 0:01:20]} Rb8 {[%emt 0:02:59]} 13. g4 {[%emt 0:01:01]} Nxd4 {[%emt 0:03:32]} 14. Bxd4 {[%emt 0:00:10]} e5 {[%emt 0:00:05]} 15. Ba7 {[%emt 0:00:44]} Ra8 {[%emt 0:00:22]} 16. Bf2 {[%emt 0:00:07]} Be6 {[%emt 0:00:29]} 17. g5 {[%emt 0:01:08]} Nd7 {[%emt 0:00:09]} 18. f5 {[%emt 0:00:22]} Bc4 {[%emt 0:00:11]} 19. Rg1 {[%emt 0:00:08]} g6 {[%emt 0:03:30]} 20. Rg2 {[%emt 0:02:53]} b5 {[%emt 0:00:30]} 21. Be3 {[%emt 0:00:25]} Qc6 {[%emt 0:01:50]} 22. f6 {[%emt 0:02:05]} Bd8 {[%emt 0:00:47]} 23. axb5 {[%emt 0:00:22]} Bxb5 {[%emt 0:00:05]} 24. Nxb5 {[%emt 0:00:31]} axb5 {[%emt 0:00:07]} 25. Rxa8 {[%emt 0:00:07]} Qxa8 {[%emt 0:00:00]} 26. Qxd6 {[%emt 0:00:08]} Nf8 {[%emt 0:00:16]} 27. Rg1 {[%emt 0:01:10]} Qc8 {[%emt 0:00:35]} 28. Qc5 {[%emt 0:00:27]} Qb7 {[%emt 0:00:16]} 29. Qd5 {[%emt 0:00:25]} Qc8 {[%emt 0:00:06]} 30. Qxb5 {[%emt 0:00:22]} Re6 {[%emt 0:00:04]} 31. Bg4 {[%emt 0:00:19]} Qxc2 {[%emt 0:00:05]} 32. Bxe6 {[%emt 0:00:22]} Qxe4+ {[%emt 0:00:03]} 33. Rg2 {[%emt 0:00:03]} Qxe3 {[%emt 0:00:15]} 34. Bd5 {[%emt 0:00:28]} e4 {[%emt 0:00:07]} 35. Qe2 {[%emt 0:00:08]} Qd4 {[%emt 0:00:06]} 36. Qxe4 {[%emt 0:00:07]} Qd1+ {[%emt 0:00:02]} 37. Rg1 {[%emt 0:00:02]} Qd2 {[%emt 0:00:02]} 38. Re1 {[%emt 0:00:07]} Bb6 {[%emt 0:00:06]} 39. Re2 {[%emt 0:00:07]} Qd1+ {[%emt 0:00:05]} 40. Kg2 {[%emt 0:00:02]} Qg1+ {[%emt 0:00:02]} 41. Kh3 {[%emt 0:00:04]} Qf1+ {[%emt 0:00:03]} 42. Qg2 {[%emt 0:00:04]} Qf5+ {[%emt 0:00:05]} 43. Qg4 {[%emt 0:00:03]} Qf1+ {[%emt 0:00:02]} 44. Bg2 {[%emt 0:00:04]} Qb1 {[%emt 0:00:08]} 45. Re8 {[%emt 0:00:06]} Qc2 {[%emt 0:00:04]} 46. Qe4 {[%emt 0:00:08]} Qd1 {[%emt 0:00:17]} 47. Rxf8+ {[%emt 0:00:06]} 1-0

[Event "European Online Club-ch-B 2021"]
[Site "Online"]
[Date "2021.03.27"]
[Round "5.4"]
[White "Nikel, Rastislav"]
[Black "Miralles, Gilles"]
[Result "0-1"]
[ECO "B88"]
[WhiteElo "1984"]
[BlackElo "2418"]
[Annotator "NA"]
[PlyCount "40"]
[EventDate "2021.03.27"]
[EventType "team-tourn"]
[EventCountry "NET"]
[SourceTitle "playchess.com"]
[Source "ChessBase"]
[SourceQuality "1"]
[TimeControl "900+5"]

1. e4 {[%emt 0:00:00]} c5 {[%emt 0:00:05]} 2. Nf3 {[%emt 0:00:03]} d6 {[%emt 0:00:05]} 3. d4 {[%emt 0:00:05]} cxd4 {[%emt 0:00:02]} 4. Nxd4 {[%emt 0:00:10]} Nf6 {[%emt 0:00:02]} 5. Nc3 {[%emt 0:00:03]} Nc6 {[%emt 0:00:03]} 6. Bc4 {[%emt 0:00:07]} e6 {[%emt 0:00:23]} 7. O-O {[%emt 0:00:06]} Be7 {[%emt 0:00:49]} 8. Be3 {[%emt 0:00:21]} O-O {[%emt 0:00:27]} 9. Qe2 {[%emt 0:01:04]} a6 {[%emt 0:00:38]} 10. f4 {[%emt 0:00:54]} d5 {[%emt 0:00:24]} 11. exd5 {[%emt 0:00:11]} exd5 {[%emt 0:00:09]} 12. Bd3 {[%emt 0:00:08]} Re8 {[%emt 0:00:26]} 13. h3 {[%emt 0:00:42]} Bc5 {[%emt 0:00:50]} 14. Qf2 {[%emt 0:00:05]} Rxe3 {[%emt 0:00:15]} 15. Nxc6 {[%emt 0:01:58]} bxc6 {[%emt 0:00:11]} 16. Nd1 {[%emt 0:00:04]} Qb6 {[%emt 0:00:30]} 17. b4 {[%emt 0:00:10]} Bd4 {[%emt 0:00:08]} 18. c3 {[%emt 0:00:31]} Rxd3 {[%emt 0:00:03]} 19. cxd4 {[%emt 0:00:03]} Qxd4 {[%emt 0:00:01]} 20. Nb2 {[%emt 0:01:01]} Rd2 {[%emt 0:00:22]} 0-1

[Event "European Online Club-ch-B 2021"]
[Site "Online"]
[Date "2021.03.27"]
[Round "5.5"]
[White "Santos Latasa, Jaime"]
[Black "Grandelius, Nils"]
[Result "1/2-1/2"]
[ECO "B15"]
[WhiteElo "2608"]
[BlackElo "2663"]
[Annotator "ChessBase"]
[PlyCount "60"]
[EventDate "2021.03.27"]
[EventType "team-tourn"]
[EventCountry "NET"]
[SourceTitle "playchess.com"]
[Source "ChessBase"]
[SourceQuality "1"]
[TimeControl "900+5"]

1. e4 {[%emt 0:00:00]} c6 {[%emt 0:00:03]} 2. d4 {[%emt 0:00:04]} d5 {[%emt 0:00:02]} 3. Nd2 {[%emt 0:00:02]} dxe4 {[%emt 0:00:04]} 4. Nxe4 {[%emt 0:00:01]} Nf6 {[%emt 0:00:00]} 5. Nxf6+ {[%emt 0:00:01]} exf6 {[%emt 0:00:00]} 6. Be3 {[%emt 0:00:12]} Qb6 {[%emt 0:00:33]} 7. Qe2 {[%emt 0:00:04]} Be6 {[%emt 0:00:34]} 8. c3 {[%emt 0:00:31]} Qa5 {[%emt 0:00:28]} 9. Qc2 {[%emt 0:00:09]} Bd6 {[%emt 0:00:20]} 10. Bd3 {[%emt 0:00:04]} Nd7 {[%emt 0:00:08]} 11. Ne2 {[%emt 0:00:08]} Qc7 {[%emt 0:00:49]} 12. h3 {[%emt 0:00:34]} g6 {[%emt 0:01:30]} 13. O-O {[%emt 0:01:47]} O-O {[%emt 0:00:05]} 14. Qd2 {[%emt 0:01:01]} Rfe8 {[%emt 0:02:12]} 15. Rfe1 {[%emt 0:02:10]} Nb6 {[%emt 0:00:29]} 16. Nf4 {[%emt 0:02:26]} Nd5 {[%emt 0:01:56]} 17. Nxe6 {[%emt 0:01:35]} Rxe6 {[%emt 0:00:00]} 18. Bh6 {[%emt 0:00:03]} Rae8 {[%emt 0:02:03]} 19. Rxe6 {[%emt 0:00:04]} Rxe6 {[%emt 0:00:00]} 20. Re1 {[%emt 0:00:05]} Bf4 {[%emt 0:00:09]} 21. Rxe6 {[%emt 0:00:22]} fxe6 {[%emt 0:00:00]} 22. Bxf4 {[%emt 0:00:03]} Nxf4 {[%emt 0:00:02]} 23. Bc4 {[%emt 0:00:11]} Qd6 {[%emt 0:00:21]} 24. Qe3 {[%emt 0:00:12]} a5 {[%emt 0:00:47]} 25. a4 {[%emt 0:00:20]} Kg7 {[%emt 0:00:23]} 26. h4 {[%emt 0:00:41]} h6 {[%emt 0:01:17]} 27. g3 {[%emt 0:00:14]} Nd5 {[%emt 0:00:02]} 28. Qe4 {[%emt 0:00:06]} f5 {[%emt 0:00:44]} 29. Qe2 {[%emt 0:00:09]} Kf6 {[%emt 0:00:10]} 30. f4 {[%emt 0:01:19]} Nb6 {[%emt 0:00:27]} 1/2-1/2

[Event "European Online Club-ch-B 2021"]
[Site "Online"]
[Date "2021.03.27"]
[Round "5.6"]
[White "Svane, Rasmus"]
[Black "Admiraal, Miguoel"]
[Result "1/2-1/2"]
[ECO "A07"]
[WhiteElo "2613"]
[BlackElo "2475"]
[Annotator "ChessBase"]
[PlyCount "85"]
[EventDate "2021.03.27"]
[EventType "team-tourn"]
[EventCountry "NET"]
[SourceTitle "playchess.com"]
[Source "ChessBase"]
[SourceQuality "1"]
[TimeControl "900+5"]

1. Nf3 {[%emt 0:00:00]} d5 {[%emt 0:00:08]} 2. g3 {[%emt 0:00:03]} c6 {[%emt 0:00:04]} 3. Bg2 {[%emt 0:00:02]} Bg4 {[%emt 0:00:02]} 4. O-O {[%emt 0:00:02]} Nd7 {[%emt 0:00:06]} 5. h3 {[%emt 0:00:01]} Bh5 {[%emt 0:00:02]} 6. d4 {[%emt 0:00:02]} Ngf6 {[%emt 0:00:09]} 7. c4 {[%emt 0:00:03]} e6 {[%emt 0:00:11]} 8. cxd5 {[%emt 0:00:02]} cxd5 {[%emt 0:00:03]} 9. Qb3 {[%emt 0:00:11]} Qb6 {[%emt 0:00:22]} 10. Nc3 {[%emt 0:00:04]} Be7 {[%emt 0:00:56]} 11. Ne5 {[%emt 0:00:29]} Qxd4 {[%emt 0:02:55]} 12. Nxd7 {[%emt 0:00:54]} Nxd7 {[%emt 0:00:04]} 13. Qxb7 {[%emt 0:04:36]} Rb8 {[%emt 0:00:06]} 14. Qc6 {[%emt 0:00:10]} Qb6 {[%emt 0:00:35]} 15. Qa4 {[%emt 0:01:06]} Rd8 {[%emt 0:01:14]} 16. g4 {[%emt 0:01:18]} Bg6 {[%emt 0:00:07]} 17. Be3 {[%emt 0:01:30]} Qxb2 {[%emt 0:01:09]} 18. Bd4 {[%emt 0:00:28]} Qb4 {[%emt 0:02:45]} 19. Qxb4 {[%emt 0:00:53]} Bxb4 {[%emt 0:00:02]} 20. Bxg7 {[%emt 0:00:04]} Rg8 {[%emt 0:00:03]} 21. Bd4 {[%emt 0:00:04]} Bc5 {[%emt 0:01:55]} 22. Bxc5 {[%emt 0:00:15]} Nxc5 {[%emt 0:00:01]} 23. Rac1 {[%emt 0:00:07]} Nd7 {[%emt 0:00:36]} 24. Nb5 {[%emt 0:01:15]} a6 {[%emt 0:00:25]} 25. Nc7+ {[%emt 0:00:10]} Ke7 {[%emt 0:00:01]} 26. Rc6 {[%emt 0:00:47]} Rb8 {[%emt 0:00:43]} 27. f4 {[%emt 0:00:48]} Rb6 {[%emt 0:00:44]} 28. Rxb6 {[%emt 0:01:16]} Nxb6 {[%emt 0:00:02]} 29. f5 {[%emt 0:00:02]} exf5 {[%emt 0:00:03]} 30. gxf5 {[%emt 0:00:14]} Bh5 {[%emt 0:00:01]} 31. Rb1 {[%emt 0:00:04]} Kd6 {[%emt 0:01:05]} 32. Rxb6+ {[%emt 0:00:16]} Kxc7 {[%emt 0:00:01]} 33. Rf6 {[%emt 0:00:14]} Bxe2 {[%emt 0:00:09]} 34. Rxf7+ {[%emt 0:00:10]} Kd6 {[%emt 0:00:01]} 35. Kf2 {[%emt 0:00:00]} Bc4 {[%emt 0:00:10]} 36. Bf3 {[%emt 0:00:07]} Ke5 {[%emt 0:00:14]} 37. Bg4 {[%emt 0:00:04]} Bxa2 {[%emt 0:00:24]} 38. Rxh7 {[%emt 0:00:05]} d4 {[%emt 0:00:18]} 39. Re7+ {[%emt 0:00:01]} Kf4 {[%emt 0:00:06]} 40. Rd7 {[%emt 0:00:06]} Ke5 {[%emt 0:00:04]} 41. Re7+ {[%emt 0:00:07]} Kf4 {[%emt 0:00:02]} 42. Rd7 {[%emt 0:00:11]} Ke5 {[%emt 0:00:06]} 43. Re7+ {[%emt 0:00:07]} 1/2-1/2

[Event "European Online Club-ch-B 2021"]
[Site "Online"]
[Date "2021.03.27"]
[Round "5.7"]
[White "Matnadze, Ana"]
[Black "Hansen, Sune Berg"]
[Result "0-1"]
[ECO "D78"]
[WhiteElo "2421"]
[BlackElo "2533"]
[Annotator "ChessBase"]
[PlyCount "90"]
[EventDate "2021.03.27"]
[EventType "team-tourn"]
[EventCountry "NET"]
[SourceTitle "playchess.com"]
[Source "ChessBase"]
[SourceQuality "1"]
[TimeControl "900+5"]

1. d4 {[%emt 0:00:00]} d5 {[%emt 0:00:04]} 2. Nf3 {[%emt 0:00:05]} Nf6 {[%emt 0:00:04]} 3. g3 {[%emt 0:00:03]} g6 {[%emt 0:00:10]} 4. Bg2 {[%emt 0:00:03]} Bg7 {[%emt 0:00:02]} 5. O-O {[%emt 0:00:04]} O-O {[%emt 0:00:02]} 6. c4 {[%emt 0:00:04]} c6 {[%emt 0:00:08]} 7. Qb3 {[%emt 0:00:10]} Qb6 {[%emt 0:00:30]} 8. Nc3 {[%emt 0:00:12]} Rd8 {[%emt 0:00:28]} 9. c5 {[%emt 0:00:11]} Qa6 {[%emt 0:00:39]} 10. Bf4 {[%emt 0:00:26]} Nbd7 {[%emt 0:00:19]} 11. Bc7 {[%emt 0:00:18]} Re8 {[%emt 0:00:12]} 12. Rfc1 {[%emt 0:00:29]} b6 {[%emt 0:00:09]} 13. cxb6 {[%emt 0:00:19]} axb6 {[%emt 0:00:04]} 14. Ne5 {[%emt 0:00:17]} Bb7 {[%emt 0:01:14]} 15. e4 {[%emt 0:00:40]} e6 {[%emt 0:00:15]} 16. a4 {[%emt 0:00:29]} Rac8 {[%emt 0:01:48]} 17. Bd6 {[%emt 0:00:13]} Nxe5 {[%emt 0:00:35]} 18. dxe5 {[%emt 0:00:15]} Nd7 {[%emt 0:00:09]} 19. exd5 {[%emt 0:00:19]} exd5 {[%emt 0:00:35]} 20. f4 {[%emt 0:00:10]} f6 {[%emt 0:00:29]} 21. Bh3 {[%emt 0:01:56]} Rcd8 {[%emt 0:02:30]} 22. Bc7 {[%emt 0:02:57]} fxe5 {[%emt 0:00:03]} 23. Bxd8 {[%emt 0:00:11]} Rxd8 {[%emt 0:00:34]} 24. Ne4 {[%emt 0:01:50]} Nf8 {[%emt 0:01:36]} 25. f5 {[%emt 0:00:21]} gxf5 {[%emt 0:00:25]} 26. Bxf5 {[%emt 0:00:09]} h6 {[%emt 0:00:28]} 27. Rf1 {[%emt 0:00:37]} Kh8 {[%emt 0:00:20]} 28. Nf2 {[%emt 0:00:30]} e4 {[%emt 0:00:37]} 29. Rad1 {[%emt 0:00:21]} Re8 {[%emt 0:00:06]} 30. Ng4 {[%emt 0:00:41]} c5 {[%emt 0:00:24]} 31. Qe3 {[%emt 0:01:00]} d4 {[%emt 0:00:24]} 32. Qf4 {[%emt 0:00:07]} e3 {[%emt 0:00:39]} 33. Nf6 {[%emt 0:01:02]} Qe2 {[%emt 0:00:45]} 34. Be4 {[%emt 0:00:20]} Bxe4 {[%emt 0:00:28]} 35. Nxe4 {[%emt 0:00:03]} Qc2 {[%emt 0:00:12]} 36. Nd6 {[%emt 0:00:20]} e2 {[%emt 0:00:10]} 37. Nf7+ {[%emt 0:00:11]} Kh7 {[%emt 0:00:09]} 38. Rc1 {[%emt 0:00:33]} exf1=Q+ {[%emt 0:00:02]} 39. Qxf1 {[%emt 0:00:02]} Qe4 {[%emt 0:00:01]} 40. Nd6 {[%emt 0:00:08]} Qe3+ {[%emt 0:00:02]} 41. Kh1 {[%emt 0:00:02]} Re5 {[%emt 0:00:04]} 42. Nc4 {[%emt 0:00:05]} Qe4+ {[%emt 0:00:02]} 43. Kg1 {[%emt 0:00:02]} Rf5 {[%emt 0:00:01]} 44. Qd1 {[%emt 0:00:09]} d3 {[%emt 0:00:04]} 45. Qd2 {[%emt 0:00:05]} Bd4+ {[%emt 0:00:02]} 0-1

[Event "European Online Club-ch-B 2021"]
[Site "Online"]
[Date "2021.03.27"]
[Round "5.8"]
[White "Kramer, Julian"]
[Black "De Rover, Yong Hoon"]
[Result "1-0"]
[ECO "B90"]
[WhiteElo "2419"]
[BlackElo "2349"]
[Annotator "NA"]
[PlyCount "37"]
[EventDate "2021.03.27"]
[EventType "team-tourn"]
[EventCountry "NET"]
[SourceTitle "playchess.com"]
[Source "ChessBase"]
[SourceQuality "1"]
[TimeControl "900+5"]

1. e4 {[%emt 0:00:00]} c5 {[%emt 0:00:05]} 2. Nf3 {[%emt 0:00:02]} d6 {[%emt 0:00:02]} 3. d4 {[%emt 0:00:02]} cxd4 {[%emt 0:00:02]} 4. Nxd4 {[%emt 0:00:00]} Nf6 {[%emt 0:00:02]} 5. Nc3 {[%emt 0:00:02]} a6 {[%emt 0:00:05]} 6. a3 {[%emt 0:00:02]} e5 {[%emt 0:00:52]} 7. Nf5 {[%emt 0:00:03]} d5 {[%emt 0:00:34]} 8. Bg5 {[%emt 0:00:05]} d4 {[%emt 0:00:23]} 9. Bxf6 {[%emt 0:00:04]} gxf6 {[%emt 0:00:09]} 10. Nb1 {[%emt 0:00:03]} Bxf5 {[%emt 0:01:17]} 11. exf5 {[%emt 0:00:00]} Qd5 {[%emt 0:00:49]} 12. Qh5 {[%emt 0:00:07]} Nd7 {[%emt 0:00:53]} 13. Nd2 {[%emt 0:00:14]} Rc8 {[%emt 0:00:21]} 14. Bd3 {[%emt 0:00:41]} Nc5 {[%emt 0:03:00]} 15. Bc4 {[%emt 0:02:38]} Qd7 {[%emt 0:00:06]} 16. b4 {[%emt 0:00:02]} b5 {[%emt 0:03:10]} 17. Ba2 {[%emt 0:01:02]} Na4 {[%emt 0:00:07]} 18. Be6 {[%emt 0:00:18]} Qc6 {[%emt 0:00:16]} 19. Qxf7+ {[%emt 0:00:20]} 1-0